{"text_format":"2","workbook":"xlsx","n_sheets":7,"sheets":["Záradék","Munkanem összesítő","19.Költségtérítések","21.Irtás, föld- és sziklamunka","36.Vakolás és rabicolás","44.Fa- és műanyag szerkezet el","47.Felületképzés"],"not_rendered":{"charts":0,"images":0,"macros":0,"external_links":0,"defined_names":0,"comments":0,"pivot_tables":0},"unopened":[],"bounds":{"document_bytes":16777216,"sheet_cells":100000,"run_cost":"one","rows_first":2000,"rows_last":500,"rows_between":2000,"halvings":0,"cell_chars":16384,"cell_head_chars":4096},"cells_cut":0,"cells_raw":0,"read":"whole","date_system":"1900"}

{"sheet":"Záradék","index":0,"n_rows":26,"n_cols":4,"rows_kept":26,"cut":false,"hidden":false,"merged":[[20,2,20,3],[7,0,7,3],[12,0,12,3],[14,0,14,3],[17,2,17,3],[18,2,18,3],[19,2,19,3]]}
["Név : SZTE Bölcsészet- és Társadalomtudományi Kar"]
["                                       ",null,"                                       "]
["Cím : Szeged, Egyetem utca 2.",null," Kelt:      2022 év...........hó...nap "]
["                                       ",null," Készítette   :            "]
[]
[]
["A munka leírása:                       "]
["SZTE Bölcsészet- és Társadalomtudományi Kar Egyetem utca 2. szám alatti épületben meghatározott folyosói szakaszok és iroda festése, valamint a helyiségekhez tartozó nyílászárók pászítása és mázolása"]
["                                                                              "]
["                                                                              "]
["Készült:                                                           "]
["                                                                              "]
[]
[]
["Költségvetés főösszesítő"]
["Megnevezés",null,"Anyagköltség","Díjköltség"]
["1 Építmény közvetlen költségei",null,{"$f":"'Munkanem összesítő'!C7","v":0},{"$f":"'Munkanem összesítő'!D7","v":0}]
["2. Tartalékkeret(5%)",null,{"$f":"ROUND(C17+D17,0)*0.05","v":0}]
["3.1 ÁFA vetítési alap",null,{"$f":"ROUND(C17+D17,0)+C18","v":0}]
["3.2 ÁFA",0.27,{"$f":"ROUND(C19*B20,0)","v":0}]
["4 A munka ára (HUF)",null,{"$f":"ROUND(C20+C19,0)","v":0}]
["Megnevezés",null,"Anyagköltség","Díjköltség"]
[]
[]
["                                       "]
["                                       "]

{"sheet":"Munkanem összesítő","index":1,"n_rows":7,"n_cols":4,"rows_kept":7,"cut":false,"hidden":false,"merged":[]}
["Ssz.","Megnevezés","Anyagköltség","Díjköltség"]
["19","Költségtérítések",{"$f":"'19.Költségtérítések'!H4","v":0},{"$f":"'19.Költségtérítések'!I4","v":0}]
["21","Irtás, föld- és sziklamunka",{"$f":"'21.Irtás, föld- és sziklamunka'!H4","v":0},{"$f":"'21.Irtás, föld- és sziklamunka'!I4","v":0}]
["36","Vakolás és rabicolás",{"$f":"'36.Vakolás és rabicolás'!H9","v":0},{"$f":"'36.Vakolás és rabicolás'!I9","v":0}]
["44","Fa- és műanyag szerkezet elhelyezése",{"$f":"'44.Fa- és műanyag szerkezet el'!H4","v":0},{"$f":"'44.Fa- és műanyag szerkezet el'!I4","v":0}]
["47","Felületképzés",{"$f":"'47.Felületképzés'!H21","v":0},{"$f":"'47.Felületképzés'!I21","v":0}]
[null,"Összesen (HUF)",{"$f":"ROUND(SUM(C2:C6),0)","v":0},{"$f":"ROUND(SUM(D2:D6),0)","v":0}]

{"sheet":"19.Költségtérítések","index":2,"n_rows":4,"n_cols":9,"rows_kept":4,"cut":false,"hidden":false,"merged":[]}
["Ssz.","Tételszám","Tétel szövege","Menny.","Egység","Anyag egységár","Díj egységre","Anyag összesen","Díj összesen"]
[1,"19-090-1","Építmények átadás előtti utolsó takarítása (pipere)",1,"db",null,null,{"$f":"ROUND(F2*D2,0)","v":0},{"$f":"ROUND(G2*D2,0)","v":0}]
[2,"90-008-1-0110202","Festés előtt burkolatok takarásának készítése, Takarás készítése fóliával",8,"100 m2",null,null,{"$f":"ROUND(F3*D3,0)","v":0},{"$f":"ROUND(G3*D3,0)","v":0}]
[null,null,"Munkanem összesen (HUF)",{"$nulls":4},{"$f":"ROUND(SUM(H2:H3),0)","v":0},{"$f":"ROUND(SUM(I2:I3),0)","v":0}]

{"sheet":"21.Irtás, föld- és sziklamunka","index":3,"n_rows":4,"n_cols":9,"rows_kept":4,"cut":false,"hidden":false,"merged":[]}
["Ssz.","Tételszám","Tétel szövege","Menny.","Egység","Anyag egységár","Díj egységre","Anyag összesen","Díj összesen"]
[1,"21-011-11.3","Építési törmelék konténeres elszállítása, lerakása, lerakóhelyi díjjal, 5,0 m³-es konténerbe",1,"db",null,null,{"$f":"ROUND(F2*D2,0)","v":0},{"$f":"ROUND(G2*D2,0)","v":0}]
[2,"21-011-12","Munkahelyi depóniából építési törmelék konténerbe rakása,  kézi erővel, önálló munka esetén elszámolva, konténer szállítás nélkül",5,"m3",null,null,{"$f":"ROUND(F3*D3,0)","v":0},{"$f":"ROUND(G3*D3,0)","v":0}]
[null,null,"Munkanem összesen (HUF)",{"$nulls":4},{"$f":"ROUND(SUM(H2:H3),0)","v":0},{"$f":"ROUND(SUM(I2:I3),0)","v":0}]

{"sheet":"36.Vakolás és rabicolás","index":4,"n_rows":9,"n_cols":9,"rows_kept":9,"cut":false,"hidden":false,"merged":[]}
["Ssz.","Tételszám","Tétel szövege","Menny.","Egység","Anyag egységár","Díj egységre","Anyag összesen","Díj összesen"]
[1,"36-000-1.1.1","Vakolat leverése oldalfalról vagy mennyezetről 1,5 cm vastagságig falazó, cementes mészhabarcs",10,"m2",null,null,{"$f":"ROUND(F2*D2,0)","v":0},{"$f":"ROUND(G2*D2,0)","v":0}]
[2,"36-002-1","Felület portalanítása, előnedvesítése porlasztott vízsugárral, vakolás előtt",10,"m2",null,null,0,0]
[3,"36-002-11.1-0415911","Tapadóhíd képzése gyári zsákos gúzanyaggal, kézi erővel,",10,"m2",null,null,0,0]
[4,"36-002-13-0415915","Szellőző, szárító vakolat alapozók felhordása, falazatok vakolatfelújításához, ",10,"m2",null,null,0,0]
[5,"36-003-11.1-0414720","Oldalfalvakolat vagy mennyezet vakolat simítása, előkevert gyári szárazhabarcsból, 5 mm vastagságig, kézi felhordással (a gyártó által megadott kg/m²/mm rétegvastagsággal),",10,"m2",null,null,0,0]
[6,"36-003-2.1.1.1.1-0414710","Mennyezetvakolat készítése, kézi felhordással, zsákos kiszerelésű szárazhabarcsból, sima, normál mész-cement vakolat, 1 cm vastagságban, ",2,"m2",null,null,0,0]
[7,"36-003-1.1.1.1.1-0414710","Oldalfalvakolat készítése, kézi felhordással, zsákos kiszerelésű szárazhabarcsból, sima, normál mész-cement vakolat, 1 cm vastagságban, ",7.2,"m2",null,null,0,0]
[null,null,"Munkanem összesen (HUF)",{"$nulls":4},{"$f":"ROUND(SUM(H2:H8),0)","v":0},{"$f":"ROUND(SUM(I2:I8),0)","v":0}]

{"sheet":"44.Fa- és műanyag szerkezet el","index":5,"n_rows":4,"n_cols":9,"rows_kept":4,"cut":false,"hidden":false,"merged":[]}
["Ssz.","Tételszám","Tétel szövege","Menny.","Egység","Anyag egységár","Díj egységre","Anyag összesen","Díj összesen"]
[1,"44-090-1.6","Meglévő mindenféle nyílászáró szerkezet kisebb javítása  faanyag- és/vagy vasalatpótlással, 2 m² felett, vasalatpótlás nélkül",31,"db",null,null,{"$f":"ROUND(F2*D2,0)","v":0},{"$f":"ROUND(G2*D2,0)","v":0}]
[2,"44-090-1.5","Meglévő mindenféle nyílászáró szerkezet kisebb javítása  faanyag- és/vagy vasalatpótlással, 1,21-2 m² között, vasalatpótlás nélkül",6,"db",null,null,{"$f":"ROUND(F3*D3,0)","v":0},{"$f":"ROUND(G3*D3,0)","v":0}]
[null,null,"Munkanem összesen (HUF)",{"$nulls":4},{"$f":"ROUND(SUM(H2:H3),0)","v":0},{"$f":"ROUND(SUM(I2:I3),0)","v":0}]

{"sheet":"47.Felületképzés","index":6,"n_rows":21,"n_cols":9,"rows_kept":21,"cut":false,"hidden":false,"merged":[]}
["Ssz.","Tételszám","Tétel szövege","Menny.","Egység","Anyag egységár","Díj egységre","Anyag összesen","Díj összesen"]
[1,"47-000-1.7.1.2","Belső festéseknél felület előkészítése, részmunkák; előfestés, bármilyen padozatú helyiségben, tagolt felületen",18.25,"100 m2",null,null,{"$f":"ROUND(F2*D2,0)","v":0},{"$f":"ROUND(G2*D2,0)","v":0}]
[2,"47-021-11.5","Acélfelületek előkezelése, festéshez műhelyalapozóval, fűtőtesten, 80 NÁ feletti csőfelületen",25,"m2",null,null,0,0]
[3,"47-021-31.5.2-0137141","Acélfelületek átvonó festése fűtőtesten, NÁ 80 feletti csövön műgyanta kötőanyagú, vizes hígítású festékkel,  korróziógátló festék, fehér, selyemfényű",25,"m2",null,null,0,0]
[4,"47-021-21.5.1-0130701","Acélfelületek közbenső festése fűtőtesten, NÁ 80 feletti csövön műgyanta kötőanyagú, oldószeres festékkel, ",25,"m2",null,null,0,0]
[5,"47-021-11.4","Acélfelületek előkezelése, festéshez műhelyalapozóval, cső és regisztercső felületén 80 NÁ-ig, függesztőn és tartón, állványzaton",1560,"m",null,null,0,0]
[6,"47-021-21.4.2-0137141","Acélfelületek közbenső festése cső és regisztercső felületén (NÁ 80-ig), függesztőn és tartóvason, sormosdó állványzaton műgyanta kötőanyagú, vizes hígítású festékkel,  korróziógátló festék, fehér, selyemfényű",200,"m2",null,null,0,0]
[7,"47-021-31.4.2-0137141","Acélfelületek átvonó festése cső és regisztercső felületén (NÁ 80-ig), függesztőn és tartóvason, sormosdó állványzaton műgyanta kötőanyagú, vizes hígítású festékkel,  korróziógátló festék, fehér, selyemfényű",1560,"m",null,null,0,0]
[8,"47-031-1.5.1.2-0160016","Belső fafelületek zománclakkozása, műgyantabázisú (alkid) oldószertartalmú zománccal, tagolt felületen, oldószeres selyemfényű zománc fehér",550,"m2",null,null,0,0]
[9,"47-031-1.5.1.2-0137058","Belső fafelületek zománclakkozása, műgyantabázisú (alkid) oldószertartalmú zománccal, tagolt felületen,  aromamentes, tartós, időjárásálló zománcfesték, selyemfényű, jó ütőszilárdságú, szín- és fénystabilitás, színes",210,"m2",null,null,0,0]
[10,"42-073-1.1-0212022","Dilatációs és csatlakozó fuga kitöltése, szilikon alapú elasztikus tömítő anyaggal, 5 mm szélesség- és mélységben,  Szaniterszilikon, rugalmas réskitöltő anyag, sarkok és csatlakozások réseinek kitöltésére",43,"m",null,null,0,0]
[11,"47-000-7.1.2.2","Fafelületek mázolásának előkészítő és részmunkái; régi olajmázolás eltávolítása fa nyílászáró szerkezetről, lekaparással (raskettázás), tagolt felületről",827,"m2",null,null,0,0]
[12,"47-000-7.2.3.2-0160785","Fafelületek mázolásának előkészítő és részmunkái; fafelület beeresztő alapozása egy rétegben, lenolajos alapozóval, tagolt felületen,  alapozó fához, alkáli vakolatokhoz és gipszstukkókhoz",827,"m2",null,null,0,0]
[13,"47-000-7.3.2-0150112","Fafelületek mázolásának előkészítő és részmunkái; simító tapaszolás fafelületen, egyszeri és minden további, tagolt felületen, ",100,"m2",null,null,0,0]
[14,"47-011-5.2.2.2-0141882","Olajfestések, lenolaj kötőanyagú, fehér vagy színes falfestékkel, ásványi alapfelületen,  két rétegben, tagolt sima felületen, ",78,"m2",null,null,0,0]
[15,"47-011-41.3.1.1-0159521","Díszítő festések, diszperziós festések, akrilát bázisú vizes-diszperziós  dekoratív, gyárilag színezett lazúr falfestékkel, megfelelően előkészített alapfelületen, vakolaton, két rétegben, tagolatlan sima felületen,  attraktív lazúr, beltéri felületek festésére, selyemmatt, színezhető, fehér festékcsepekkel",92,"m2",null,null,0,0]
[16,"47-011-42.2","Felület mintázása, második és minden további záró vonalozásért felülfizetés",2.1,"100 m",null,null,0,0]
[17,"47-011-15.4.1.2-0159875","Diszperziós festés latex bázisú, fehér vagy gyárilag színezett vízzel hígítható falfestékkel, megfelelően előkészített alapfelületen, vakolaton, két rétegben, tagolt sima felületen,  fokozottan terhelhető beltéri latexfesték, selyemmatt, III. színcsoport, strapabíró, súrolásálló, könnyen tisztítható, moshatóság: 1. osztály, fedőképesség: 2. osztály",1825,"m2",null,null,0,0]
[18,"47-031-1.3.1.1-0130701","Belső fafelületek fedőmázolása, műgyantabázisú (alkid) oldószertartalmú alapozóval, tagolatlan felületen, ",550,"m2",null,null,0,0]
[19,"47-031-3.6.1.2-0137075","Külső fafelületek zománclakkozása, fa nyílászáró szerkezeten,oldószeres zománcfestékkel, két rétegben, tagolt felületen,  vízháztartást szabályozó selyemfényu lakk faablakokra, kül- és beltérben, színes",67,"m2",null,null,0,0]
[null,null,"Munkanem összesen (HUF)",{"$nulls":4},{"$f":"ROUND(SUM(H2:H20),0)","v":0},{"$f":"ROUND(SUM(I2:I20),0)","v":0}]